fUSD/lending_fUSD_20240119
["ID","MTS","AMOUNT","RATE_DAILY","PERIOD"]
[312132695,1705666254420,-500.0,0.00022997,2]
[312132696,1705666254431,-500.0,0.00022997,2]
[312132697,1705666254443,-500.0,0.00022997,2]
[312132698,1705666254454,-500.0,0.00022997,2]
[312132699,1705666254466,-500.0,0.00022997,2]
[312132700,1705666254477,-987.25,0.00022997,2]
[312132701,1705666254488,-500.0,0.00022997,2]
[312132702,1705666254600,-500.0,0.00022997,2]
[312132703,1705666254611,-500.0,0.00022997,2]
[312132704,1705666254626,-500.0,0.00022997,2]
[312132705,1705666254637,-500.0,0.00022997,2]
[312132706,1705666254647,-500.0,0.00022997,2]
[312132707,1705666254658,-500.0,0.00022997,2]
[312132708,1705666254670,-500.0,0.00022997,2]
[312132709,1705666254682,-513.50551182,0.00022997,2]
[312132710,1705666254693,-500.0,0.00022997,2]
[312132711,1705666254705,-500.0,0.00022997,2]
[312132712,1705666254717,-500.0,0.00022997,2]
[312132713,1705666254728,-500.0,0.00022997,2]
[312132714,1705666254739,-804.04,0.00022997,2]
[312132715,1705666254750,-500.0,0.00022997,2]
[312132716,1705666254760,-500.0,0.00022997,2]
[312132717,1705666254772,-500.0,0.00022997,2]
[312132718,1705666254785,-500.0,0.00022997,2]
[312132719,1705666254796,-834.1,0.00022997,2]
[312132720,1705666254808,-500.0,0.00022997,2]
[312132721,1705666254820,-500.0,0.00022997,2]
[312132722,1705666254832,-530.68,0.00022997,2]
[312132723,1705666254844,-500.0,0.00022997,2]
[312132724,1705666254856,-511.97240315,0.00022997,2]
[312132725,1705666254867,-500.0,0.00022997,2]
[312132726,1705666254880,-2493.17,0.00022997,2]
[312132727,1705666254892,-500.0,0.00022997,2]
[312132728,1705666254903,-882.8,0.00022997,2]
[312132729,1705666254915,-573.74,0.00022997,2]
[312132730,1705666254927,-500.0,0.00022997,2]
[312132731,1705666254938,-500.0,0.00022997,2]
[312132732,1705666254950,-615.64,0.00022997,2]
[312132733,1705666254961,-674.04,0.00022997,2]
[312132734,1705666254973,-500.0,0.00022997,2]
[312132735,1705666254984,-297.59338741,0.00022997,2]
[312132736,1705666254995,-500.0,0.00022997,2]
[312132737,1705666255007,-500.0,0.00022997,2]
[312132738,1705666255020,-500.0,0.00022997,2]
[312132739,1705666255031,-500.0,0.00022997,2]
[312132740,1705666255043,-1047.1,0.00022997,2]
[312132741,1705666255054,-500.0,0.00022997,2]
[312132742,1705666255064,-500.0,0.00022997,2]
[312132743,1705666255075,-439.3521389,0.00022997,2]
[312132744,1705666255088,-500.0,0.00022997,2]
[312132745,1705666255100,-500.0,0.00022997,2]
[312132746,1705666255111,-500.0,0.00022997,2]
[312132747,1705666255123,-500.0,0.00022997,2]
[312132748,1705666255134,-514.43137315,0.00022997,2]
[312132749,1705666255146,-500.0,0.00022997,2]
[312132750,1705666255157,-500.0,0.00022997,2]
[312132751,1705666255169,-830.43,0.00022997,2]
[312132752,1705666255180,-500.0,0.00022997,2]
[312132753,1705666255191,-500.0,0.00022997,2]
[312132754,1705666255202,-500.0,0.00022997,2]
[312132755,1705666255214,-500.0,0.00022997,2]
[312132756,1705666255225,-500.0,0.00022997,2]
[312132757,1705666255236,-500.0,0.00022997,2]
[312132758,1705666255248,-345.52239273,0.00022997,2]
[312132759,1705666255260,-500.0,0.00022997,2]
[312132760,1705666255271,-500.0,0.00022997,2]
[312132761,1705666255283,-500.0,0.00022997,2]
[312132762,1705666255294,-500.0,0.00022997,2]
[312132763,1705666255305,-742.00395715,0.00022997,7]
[312132764,1705666255317,-634.94,0.00022997,2]
[312132765,1705666255329,-500.0,0.00022997,2]
[312132766,1705666255341,-500.0,0.00022997,2]
[312132767,1705666255352,-833.55,0.00022997,2]
[312132768,1705666255363,-816.25,0.00022997,2]
[312132769,1705666255375,-500.0,0.00022997,2]
[312132770,1705666255387,-500.0,0.00022997,2]
[312132771,1705666255622,-500.0,0.00022997,2]
[312132772,1705666255665,-793.96,0.00022997,2]
[312132773,1705666255679,-500.0,0.00022997,2]
[312132774,1705666255691,-500.0,0.00022997,2]
[312132775,1705666255702,-500.0,0.00022997,2]
[312132776,1705666255713,-500.51022402,0.00022997,2]
[312132777,1705666255725,-500.0,0.00022997,2]
[312132778,1705666255736,-500.0,0.00022997,2]
[312132779,1705666255746,-500.0,0.00022997,2]
[312132780,1705666255758,-500.0,0.00022997,2]
[312132781,1705666255770,-500.0,0.00022997,2]
[312132782,1705666255781,-500.0,0.00022997,2]
[312132783,1705666255792,-500.0,0.00022997,2]
[312132784,1705666255803,-680.83,0.00022997,2]
[312132785,1705666255815,-500.0,0.00022997,2]
[312132786,1705666255827,-500.0,0.00022997,2]
[312132787,1705666255839,-502.77986596,0.00022997,2]
[312132788,1705666255851,-1052.77,0.00022997,2]
[312132789,1705666255863,-500.0,0.00022997,2]
[312132790,1705666255875,-500.0,0.00022997,2]
[312132791,1705666255887,-500.0,0.00022997,2]
[312132792,1705666255899,-959.44,0.00022997,2]
[312132793,1705666255911,-500.0,0.00022997,2]
[312132794,1705666255923,-500.0,0.00022997,2]
[312132795,1705666255935,-500.0,0.00022997,2]
[312132796,1705666255947,-1805.01,0.00022997,2]
[312132797,1705666255959,-500.0,0.00022997,2]
[312132798,1705666255971,-500.0,0.00022997,2]
[312132799,1705666255983,-500.0,0.00022997,2]
[312132800,1705666255995,-500.0,0.00022997,2]
[312132801,1705666256006,-447.56530199,0.00022997,2]
[312132802,1705666256019,-500.0,0.00022997,2]
[312132803,1705666256029,-500.0,0.00022997,2]
[312132804,1705666256040,-500.0,0.00022997,2]
[312132805,1705666256052,-2839.77,0.00022997,2]
[312132806,1705666256063,-790.25,0.00022997,2]
[312132807,1705666256075,-502.81433117,0.00022997,2]
[312132808,1705666256087,-500.0,0.00022997,2]
[312132809,1705666256098,-500.0,0.00022997,2]
[312132810,1705666256109,-4249.75,0.00022997,2]
[312132811,1705666256122,-520.62,0.00022997,2]
[312132812,1705666256134,-500.0,0.00022997,2]
[312132813,1705666256144,-3411.47,0.00022997,2]
[312132814,1705666256156,-500.0,0.00022997,2]
[312132815,1705666256168,-500.0,0.00022997,2]
[312132816,1705666256180,-500.0,0.00022997,2]
[312132817,1705666256191,-2837.35,0.00022997,2]
[312132818,1705666256203,-500.0,0.00022997,2]
[312132819,1705666256214,-5228.14,0.00022997,2]
[312132820,1705666256226,-931.26,0.00022997,2]
[312132821,1705666256238,-500.0,0.00022997,2]
[312132822,1705666256250,-500.0,0.00022997,2]
[312132823,1705666256261,-500.0,0.00022997,2]
[312132824,1705666256273,-1306.88,0.00022997,5]
[312132825,1705666256285,-500.0,0.00022997,2]
[312132826,1705666256296,-1111.12,0.00022997,2]
[312132827,1705666256308,-500.0,0.00022997,2]
[312132828,1705666256320,-500.0,0.00022997,2]
[312132829,1705666256332,-4809.82,0.00022997,2]
[312132830,1705666256344,-629.42,0.00022997,2]
[312132831,1705666256355,-500.0,0.00022997,2]
[312132832,1705666256367,-500.0,0.00022997,2]
[312132833,1705666256380,-500.0,0.00022997,2]
[312132834,1705666256391,-5302.03,0.00022997,2]
[312132835,1705666256402,-500.0,0.00022997,2]
[312132836,1705666256414,-500.0,0.00022997,2]
[312132837,1705666256426,-500.0,0.00022997,2]
[312132838,1705666256438,-500.0,0.00022997,2]
[312132839,1705666256449,-500.0,0.00022997,2]
[312132840,1705666256461,-500.0,0.00022997,2]
[312132841,1705666256473,-500.0,0.00022997,2]
[312132842,1705666256483,-422.87309987,0.00022997,2]
[312132843,1705666256495,-500.0,0.00022997,2]
[312132844,1705666256506,-520.25037947,0.00022997,10]
[312132845,1705666256518,-500.0,0.00022997,2]
[312132846,1705666256529,-548.62,0.00022997,2]
[312132847,1705666256541,-500.0,0.00022997,2]
[312132848,1705666256552,-500.0,0.00022997,2]
[312132849,1705666256564,-500.0,0.00022997,2]
[312132850,1705666256575,-500.0,0.00022997,2]
[312132851,1705666256587,-500.0,0.00022997,2]
[312132852,1705666256601,-500.0,0.00022997,2]
[312132853,1705666256612,-500.0,0.00022997,2]
[312132854,1705666256623,-500.0,0.00022997,2]
[312132855,1705666256636,-886.28,0.00022997,2]
[312132856,1705666256648,-500.0,0.00022997,2]
[312132857,1705666256661,-500.0,0.00022997,2]
[312132858,1705666256671,-877.94,0.00022997,2]
[312132859,1705666256684,-500.0,0.00022997,2]
[312132860,1705666256696,-596.58,0.00022997,2]
[312132861,1705666256708,-724.04,0.00022997,2]
[312132862,1705666256719,-3371.7,0.00022997,2]
[312132863,1705666256730,-504.89394057,0.00022997,2]
[312132864,1705666256741,-500.0,0.00022997,2]
[312132865,1705666256753,-500.0,0.00022997,2]
[312132866,1705666256764,-500.0,0.00022997,2]
[312132867,1705666256776,-500.0,0.00022997,2]
[312132868,1705666256788,-4400.66,0.00022997,2]
[312132869,1705666256800,-628.76442414,0.00022997,2]
[312132870,1705666256811,-500.0,0.00022997,2]
[312132871,1705666256823,-988.81,0.00022997,2]
[312132872,1705666256835,-500.0,0.00022997,2]
[312132873,1705666256846,-827.84,0.00022997,2]
[312132874,1705666256857,-669.84,0.00022997,2]
[312132875,1705666256868,-500.0,0.00022997,2]
[312132876,1705666256879,-500.0,0.00022997,2]
[312132877,1705666256891,-300.0,0.00022997,2]
[312132878,1705666256903,-558.63,0.00022997,2]
[312132879,1705666256915,-3996.45,0.00022997,2]
[312132880,1705666256927,-2045.96,0.00022997,2]
[312132881,1705666256941,-500.0,0.00022997,2]
[312132882,1705666256953,-500.0,0.00022997,2]
[312132883,1705666256963,-500.0,0.00022997,2]
[312132884,1705666256976,-612.06,0.00022997,2]
[312132885,1705666256988,-2049.86,0.00022997,2]
[312132886,1705666257000,-500.0,0.00022997,2]
[312132887,1705666257011,-500.0,0.00022997,2]
[312132888,1705666257023,-500.0,0.00022997,2]
[312132889,1705666257035,-868.63,0.00022997,2]
[312132890,1705666257047,-500.0,0.00022997,2]
[312132891,1705666257059,-591.26,0.00022997,2]
[312132892,1705666257070,-1069.62,0.00022997,2]
[312132893,1705666257082,-500.0,0.00022997,2]
[312132894,1705666257094,-500.0,0.00022997,2]
[312132895,1705666257105,-500.0,0.00022997,2]
[312132896,1705666257118,-500.0,0.00022997,2]
[312132897,1705666257130,-2549.06,0.00022997,2]
[312132898,1705666257141,-500.0,0.00022997,2]
[312132899,1705666257153,-500.0,0.00022997,2]
[312132900,1705666257165,-500.0,0.00022997,2]
[312132901,1705666257176,-587.35,0.00022997,2]
[312132902,1705666257187,-1768.63,0.00022997,2]
[312132903,1705666257199,-500.0,0.00022997,2]
[312132904,1705666257210,-500.0,0.00022997,2]
[312132905,1705666257221,-500.0,0.00022997,2]
[312132906,1705666257233,-500.0,0.00022997,2]
[312132907,1705666257246,-500.0,0.00022997,2]
[312132908,1705666257257,-1408.95,0.00022997,2]
[312132909,1705666257268,-500.0,0.00022997,2]
[312132910,1705666257279,-500.0,0.00022997,2]
[312132911,1705666257290,-3266.27,0.00022997,2]
[312132912,1705666257301,-500.0,0.00022997,2]
[312132913,1705666257312,-500.0,0.00022997,2]
[312132914,1705666257324,-500.0,0.00022997,2]
[312132915,1705666257335,-500.0,0.00022997,2]
[312132916,1705666257347,-1854.3,0.00022997,2]
[312132917,1705666257358,-500.0,0.00022997,2]
[312132918,1705666257369,-500.0,0.00022997,2]
[312132919,1705666257381,-500.0,0.00022997,2]
[312132920,1705666257392,-638.39,0.00022997,2]
[312132921,1705666257403,-500.0,0.00022997,2]
[312132922,1705666257414,-1678.82,0.00022997,2]
[312132923,1705666257425,-614.16,0.00022997,2]
[312132924,1705666257436,-854.41,0.00022997,2]
[312132925,1705666257448,-500.0,0.00022997,2]
[312132926,1705666257459,-964.22,0.00022997,2]
[312132927,1705666257470,-1518.27,0.00022997,2]
[312132928,1705666257482,-500.0,0.00022997,2]
[312132929,1705666257492,-2179.92,0.00022997,2]
[312132930,1705666257505,-500.0,0.00022997,2]
[312132931,1705666257516,-1085.0,0.00022998,2]
[312132932,1705666257527,-745198.19149756,0.00022998,3]
[312132933,1705666257538,-505807.38821923,0.00022998,2]
[312132934,1705666257550,-435.83072932,0.00022998,4]
[312132935,1705666257562,-500.0,0.00022998,2]
[312132936,1705666257575,-504.60404192,0.00022998,2]
[312132937,1705666257591,-500.0,0.00022998,2]
[312132938,1705666257604,-588.64,0.00022998,2]
[312132939,1705666257616,-500.0,0.00022998,2]
[312132940,1705666257630,-500.0,0.00022998,2]
[312132941,1705666257641,-500.0,0.00022998,2]
[312132942,1705666257653,-609.91,0.00022998,2]
[312132943,1705666257664,-500.0,0.00022998,2]
[312132944,1705666257677,-500.0,0.00022998,2]
[312132945,1705666257687,-500.0,0.00022998,2]
[312132946,1705666257698,-500.0,0.00022998,2]
[312132947,1705666257709,-500.0,0.00022998,2]
[312132948,1705666257725,-500.0,0.00022998,2]
[312132949,1705666257737,-500.0,0.00022998,2]
[312132950,1705666257749,-500.0,0.00022998,2]
[312132951,1705666257760,-1000.0,0.00022998,2]
[312132952,1705666257772,-500.0,0.00022998,2]
[312132953,1705666257783,-500.0,0.00022998,2]
[312132954,1705666257795,-607.72,0.00022998,2]
[312132955,1705666257808,-500.0,0.00022998,2]
[312132956,1705666257820,-500.0,0.00022998,2]
[312132957,1705666257832,-500.0,0.00022998,2]
[312132958,1705666257843,-522.26532659,0.00022998,2]
[312132959,1705666257855,-500.0,0.00022998,2]
[312132960,1705666257866,-604.29,0.00022998,2]
[312132961,1705666257880,-500.0,0.00022998,2]
[312132962,1705666257891,-767.29,0.00022998,2]
[312132963,1705666257902,-573.87,0.00022998,2]
[312132964,1705666257915,-500.0,0.00022998,2]
[312132965,1705666257926,-500.0,0.00022998,2]
[312132966,1705666257937,-500.0,0.00022998,2]
[312132967,1705666257949,-500.0,0.00022998,2]
[312132968,1705666257960,-828.77,0.00022998,2]
[312132969,1705666257972,-500.0,0.00022998,2]
[312132970,1705666257983,-500.0,0.00022998,2]
[312132971,1705666257994,-500.0,0.00022998,2]
[312132972,1705666258005,-500.0,0.00022998,2]
[312132973,1705666258016,-500.0,0.00022998,2]
[312132974,1705666258028,-500.0,0.00022998,2]
[312132975,1705666258039,-500.0,0.00022998,2]
[312132976,1705666258050,-504.45182358,0.00022998,2]
[312132977,1705666258062,-500.0,0.00022998,2]
[312132978,1705666258073,-572.89,0.00022998,2]
[312132979,1705666258084,-500.0,0.00022998,2]
[312132980,1705666258095,-500.0,0.00022998,2]
[312132981,1705666258106,-500.0,0.00022998,2]
[312132982,1705666258117,-500.0,0.00022998,2]
[312132983,1705666258130,-500.0,0.00022998,2]
[312132984,1705666258140,-500.0,0.00022998,2]
[312132985,1705666258150,-500.0,0.00022998,2]
[312132986,1705666258163,-662.42,0.00022998,2]
[312132987,1705666258174,-500.0,0.00022998,2]
[312132988,1705666258185,-500.0,0.00022998,2]
[312132989,1705666258196,-500.0,0.00022998,2]
[312132990,1705666258207,-500.0,0.00022998,2]
[312132991,1705666258218,-500.0,0.00022998,2]
[312132992,1705666258229,-692.21,0.00022998,2]
[312132993,1705666258240,-500.0,0.00022998,2]
[312132994,1705666258251,-500.0,0.00022998,2]
[312132995,1705666258264,-500.0,0.00022998,2]
[312132996,1705666258275,-505.94,0.00022998,2]
[312132997,1705666258286,-700.62,0.00022998,2]
[312132998,1705666258297,-843.53,0.00022998,2]
[312132999,1705666258308,-500.0,0.00022998,2]
[312133000,1705666258319,-500.0,0.00022998,2]
[312133001,1705666258330,-500.0,0.00022998,2]
[312133002,1705666258341,-500.0,0.00022998,2]
[312133003,1705666258353,-500.0,0.00022998,2]
[312133004,1705666258365,-504.5521125,0.00022998,2]
[312133005,1705666258377,-500.0,0.00022998,2]
[312133006,1705666258402,-561.36,0.00022998,2]
[312133007,1705666258415,-537.05905521,0.00022998,2]
[312133008,1705666258426,-500.0,0.00022998,2]
[312133009,1705666258438,-639.48131184,0.00022998,2]
[312133010,1705666258449,-620.37,0.00022998,2]
[312133011,1705666258461,-500.0,0.00022998,2]
[312133012,1705666258474,-500.0,0.00022998,2]
[312133013,1705666258485,-508.2136802,0.00022998,2]
[312133014,1705666258497,-500.0,0.00022998,2]
[312133015,1705666258509,-690.35,0.00022998,2]
[312133016,1705666258520,-504.67283268,0.00022998,2]
[312133017,1705666258532,-500.0,0.00022998,2]
[312133018,1705666258545,-500.0,0.00022998,2]
[312133019,1705666258557,-500.0,0.00022998,2]
[312133020,1705666258569,-659.08,0.00022998,2]
[312133021,1705666258581,-515.71355685,0.00022998,2]
[312133022,1705666258594,-500.0,0.00022998,2]
[312133023,1705666258607,-500.0,0.00022998,2]
[312133024,1705666258619,-924.43,0.00022998,2]
[312133025,1705666258630,-500.0,0.00022998,2]
[312133026,1705666258642,-500.0,0.00022998,2]
[312133027,1705666258653,-500.0,0.00022998,2]
[312133028,1705666258665,-500.0,0.00022998,2]
[312133029,1705666258678,-1191.14,0.00022998,2]
[312133030,1705666258689,-500.0,0.00022998,2]
[312133031,1705666258701,-730.5,0.00022998,2]
[312133032,1705666258713,-500.0,0.00022998,2]
[312133033,1705666258724,-557.03,0.00022998,2]
[312133034,1705666258736,-664.98,0.00022998,2]
[312133035,1705666258747,-527.63250628,0.00022998,2]
[312133036,1705666258759,-1551.61,0.00022998,2]
[312133037,1705666258771,-500.0,0.00022998,2]
[312133038,1705666258782,-500.0,0.00022998,2]
[312133039,1705666258794,-500.0,0.00022998,2]
[312133040,1705666258806,-500.0,0.00022998,2]
[312133041,1705666258817,-486.62010967,0.00022998,2]
[312133042,1705666258830,-500.0,0.00022998,2]
[312133043,1705666258842,-183.6424565,0.00022998,2]
[312133044,1705666258854,-500.0,0.00022998,2]
[312133045,1705666258866,-500.0,0.00022998,2]
[312133046,1705666258879,-1101.59,0.00022998,2]
[312133047,1705666258890,-500.0,0.00022998,2]
[312133048,1705666258901,-500.0,0.00022998,2]
[312133049,1705666258913,-500.0,0.00022998,2]
[312133050,1705666258924,-500.0,0.00022998,2]
[312133051,1705666258936,-629.68,0.00022998,2]
[312133052,1705666258947,-507.17588718,0.00022998,2]
[312133053,1705666258959,-500.0,0.00022998,2]
[312133054,1705666258971,-500.0,0.00022998,2]
[312133055,1705666258983,-500.0,0.00022998,2]
[312133056,1705666258995,-738.94,0.00022998,2]
[312133057,1705666259006,-518.16414175,0.00022998,2]
[312133058,1705666259018,-500.0,0.00022998,2]
[312133059,1705666259030,-500.0,0.00022998,2]
[312133060,1705666259041,-500.0,0.00022998,2]
[312133061,1705666259053,-500.0,0.00022998,2]
[312133062,1705666259064,-810.12,0.00022998,2]
[312133063,1705666259075,-507.12470716,0.00022998,2]
[312133064,1705666259087,-500.0,0.00022998,2]
[312133065,1705666259098,-500.0,0.00022998,2]
[312133066,1705666259110,-500.0,0.00022998,2]
[312133067,1705666259120,-537.48,0.00022998,2]
[312133068,1705666259132,-500.0,0.00022998,2]
[312133069,1705666259143,-500.0,0.00022998,2]
[312133070,1705666259155,-526.16,0.00022998,2]
[312133071,1705666259166,-500.0,0.00022998,2]
[312133072,1705666259176,-603.09,0.00022998,2]
[312133073,1705666259187,-1028.88,0.00022998,2]
[312133074,1705666259198,-500.0,0.00022998,2]
[312133075,1705666259209,-500.0,0.00022998,2]
[312133076,1705666259220,-500.0,0.00022998,2]
[312133077,1705666259231,-49126.7115202,0.00022998,2]
[312133078,1705666259248,-500.0,0.00022998,2]
[312133079,1705666259259,-953.72,0.00022998,2]
[312133080,1705666259272,-500.0,0.00022998,2]
[312133081,1705666259283,-500.0,0.00022998,2]
[312133082,1705666259294,-711.06,0.00022998,2]
[312133083,1705666259306,-500.0,0.00022998,2]
[312133084,1705666259318,-500.0,0.00022998,2]
[312133085,1705666259330,-500.0,0.00022998,2]
[312133086,1705666259341,-1427.07,0.00022998,2]
[312133087,1705666259353,-618.44,0.00022998,2]
[312133088,1705666259366,-500.0,0.00022998,2]
[312133089,1705666259378,-1731.93,0.00022998,2]
[312133090,1705666259389,-500.0,0.00022998,2]
[312133091,1705666259401,-747.42,0.00022998,2]
[312133092,1705666259412,-500.0,0.00022998,2]
[312133093,1705666259423,-500.0,0.00022998,2]
[312133094,1705666259434,-500.0,0.00022998,2]
[312133095,1705666259445,-500.0,0.00022998,2]
[312133096,1705666259457,-500.0,0.00022998,2]
[312133097,1705666259468,-500.0,0.00022998,2]
[312133098,1705666259482,-500.0,0.00022998,2]
[312133099,1705666259493,-638.91,0.00022998,2]
[312133100,1705666259507,-500.0,0.00022998,2]
[312133101,1705666259519,-500.0,0.00022998,2]
[312133102,1705666259875,-500.0,0.00022998,2]
[312133103,1705666259888,-500.0,0.00022998,2]
[312133104,1705666259899,-587.67,0.00022998,2]
[312133105,1705666259910,-500.0,0.00022998,2]
[312133106,1705666259922,-500.0,0.00022998,2]
[312133107,1705666259933,-500.0,0.00022998,2]
[312133108,1705666259944,-500.0,0.00022998,2]
[312133109,1705666259955,-500.0,0.00022998,2]
[312133110,1705666259971,-556.3,0.00022998,2]
[312133111,1705666259983,-500.0,0.00022998,2]
[312133112,1705666259995,-500.0,0.00022998,2]
[312133113,1705666260007,-999.99,0.00022998,2]
[312133114,1705666260020,-500.0,0.00022998,2]
[312133115,1705666260031,-1000.15,0.00022998,2]
[312133116,1705666260043,-500.0,0.00022998,2]
[312133117,1705666260054,-1190.14,0.00022998,2]
[312133118,1705666260066,-500.0,0.00022998,2]
[312133119,1705666260077,-500.0,0.00022998,2]
[312133120,1705666260089,-500.0,0.00022998,2]
[312133121,1705666260100,-500.0,0.00022998,2]
[312133122,1705666260111,-500.0,0.00022998,2]
[312133123,1705666260122,-500.0,0.00022998,2]
[312133124,1705666260134,-500.0,0.00022998,2]
[312133125,1705666260145,-653.45,0.00022998,2]
[312133126,1705666260156,-565.86,0.00022998,2]
[312133127,1705666260167,-500.0,0.00022998,2]
[312133128,1705666260178,-500.0,0.00022998,2]
[312133129,1705666260190,-500.0,0.00022998,2]
[312133130,1705666260202,-594.53,0.00022998,2]
[312133131,1705666260213,-500.0,0.00022998,2]
[312133132,1705666260224,-500.0,0.00022998,2]
[312133133,1705666260235,-500.0,0.00022998,2]
[312133134,1705666260247,-500.0,0.00022998,2]
[312133135,1705666260259,-730.94,0.00022998,2]
[312133136,1705666260271,-503.06928639,0.00022998,2]
[312133137,1705666260283,-500.0,0.00022998,2]
[312133138,1705666260295,-500.0,0.00022998,2]
[312133139,1705666260307,-500.0,0.00022998,2]
[312133140,1705666260319,-500.0,0.00022998,2]
[312133141,1705666260330,-500.0,0.00022998,2]
[312133142,1705666260341,-500.0,0.00022998,2]
[312133143,1705666260353,-546.75209429,0.00022998,2]
[312133144,1705666260364,-500.0,0.00022998,2]
[312133145,1705666260375,-151.0,0.00022998,7]
[312133146,1705666260386,-151.0,0.00022998,7]
[312133147,1705666260397,-151.0,0.00022998,7]
[312133148,1705666260409,-300.02,0.00022999,2]
[312133149,1705666260420,-3296.87897521,0.00022999,2]
[312133150,1705666260431,-502.40496855,0.00022999,2]
[312133151,1705666260443,-500.0,0.00022999,2]
[312133152,1705666260454,-503.3603824,0.00022999,2]
[312133153,1705666260465,-501.92734883,0.00022999,2]
[312133154,1705666260476,-500.0,0.00022999,2]
[312133155,1705666260486,-500.0,0.00022999,2]
[312133156,1705666260498,-500.0,0.00022999,2]
[312133157,1705666260509,-500.0,0.00022999,2]
[312133158,1705666260520,-526.95407961,0.00022999,2]
[312133159,1705666260530,-500.0,0.00022999,2]
[312133160,1705666260543,-500.0,0.00022999,2]
[312133161,1705666260554,-289.30168306,0.00022999,2]
[312133162,1705666260565,-500.0,0.00022999,2]
[312133163,1705666260576,-436.19267724,0.00022999,2]
[312133164,1705666260587,-500.80626972,0.00022999,2]
[312133165,1705666260600,-500.0,0.00022999,2]
[312133166,1705666260612,-500.0,0.00022999,2]
[312133167,1705666260625,-500.0,0.00022999,2]
[312133168,1705666260636,-500.0,0.00022999,2]
[312133169,1705666260651,-500.0,0.00022999,2]
[312133170,1705666260662,-500.0,0.00022999,2]
[312133171,1705666260673,-575.64471095,0.00022999,2]
[312133172,1705666260684,-500.0,0.00022999,2]
[312133173,1705666260695,-503.01051641,0.00022999,2]
[312133174,1705666260706,-500.0,0.00022999,2]
[312133175,1705666260719,-500.0,0.00022999,2]
[312133176,1705666260730,-504.17011994,0.00022999,2]
[312133177,1705666260742,-500.0,0.00022999,2]
[312133178,1705666260754,-506.48527866,0.00022999,2]
[312133179,1705666260767,-500.0,0.00022999,2]
[312133180,1705666260779,-500.0,0.00022999,2]
[312133181,1705666260792,-500.0,0.00022999,2]
[312133182,1705666260804,-506.13231885,0.00022999,2]
[312133183,1705666260816,-500.0,0.00022999,2]
[312133184,1705666260828,-500.0,0.00022999,2]
[312133185,1705666260839,-500.0,0.00022999,2]
[312133186,1705666260851,-500.0,0.00022999,2]
[312133187,1705666260862,-510.00110224,0.00022999,2]
[312133188,1705666260874,-504.49955749,0.00022999,2]
[312133189,1705666260885,-500.0,0.00022999,2]
[312133190,1705666260897,-556.51551209,0.00022999,2]
[312133191,1705666260909,-500.0,0.00022999,2]
[312133192,1705666260921,-500.0,0.00022999,2]
[312133193,1705666260974,-500.0,0.00022999,2]
[312133194,1705666260987,-507.50243372,0.00022999,2]